bitfinex-derivatives/quotes_ETHF0:USTF0_20250505
["timestamp","ask_amount","ask_price","bid_price","bid_amount"]
[1746477863879,1.10716,1806.7,1806.6,1.10717]
[1746477864583,5.96338,1806.9,1806.5,5.4334]
[1746477864780,1.10721,1806.6,1806.5,4.82923]
[1746477865181,2.8313,1806.7,1806.6,1.10721]
[1746477865685,2.83131,1806.7,1806.6,1.10721]
[1746477866086,1.10723,1806.6,1806.5,1.10721]
[1746477866286,1.10723,1806.6,1806.4,42.5114]
[1746477866287,1.10727,1806.5,1806.4,41.90734]
[1746477866487,1.10727,1806.5,1806.4,40.8]
[1746477866686,2.83137,1806.5,1806.4,40.8]
[1746477867080,2.83137,1806.5,1806.4,41.90734]
[1746477867790,2.83137,1806.5,1806.4,40.8]
[1746477868287,3.63927,1806.5,1806.4,40.8]
[1746477868591,3.63927,1806.5,1806.4,41.90734]
[1746477869990,6.84707,1806.5,1806.4,41.90734]
[1746477872687,2.76835,1806.4,1805.6,1.10782]
[1746477872892,1.1077,1805.8,1805.7,2.82643]
[1746477873086,1.1077,1805.8,1805.7,2.82645]
[1746477873389,1.1077,1805.8,1805.7,43.62645]
[1746477873789,4.40966,1806.0,1805.9,1.10764]
[1746477873790,2.74834,1806.0,1805.9,1.10764]
[1746477874089,1.10768,1805.9,1805.8,1.10766]
[1746477877394,2.74832,1806.0,1805.9,1.10764]
[1746477878993,1.10764,1805.9,1805.8,2.72245]
[1746477879195,2.81264,1805.9,1805.8,2.72245]
[1746477883696,2.81264,1805.9,1805.8,2.7225]
[1746477884193,2.81264,1805.9,1805.8,1.6148]
[1746477884394,2.81264,1805.9,1805.8,2.7225]
[1746477887701,2.81264,1805.9,1805.8,1.6148]
[1746477888398,2.81264,1805.9,1805.8,2.7225]
[1746477889997,2.81264,1805.9,1805.8,1.6148]
[1746477890198,2.81264,1805.9,1805.8,2.7225]
[1746477890794,1.705,1805.9,1805.8,2.7225]
[1746477890993,2.81264,1805.9,1805.8,2.7225]
[1746477893106,1.10764,1805.9,1805.8,2.7225]
[1746477893307,4.3154,1806.0,1805.9,1.10764]
[1746477893505,2.5189,1806.1,1805.9,1.10764]
[1746477893506,1.10752,1806.1,1806.0,1.10758]
[1746477893806,1.10752,1806.1,1806.0,1.90008]
[1746477894200,1.10752,1806.1,1806.0,3.61568]
[1746477895409,6.02512,1806.2,1806.1,1.10752]
[1746477895609,6.02512,1806.2,1806.1,1.7156]
[1746477896807,6.02512,1806.2,1806.1,2.82312]
[1746477897008,6.02512,1806.2,1806.1,1.7156]
[1746477899604,6.02512,1806.2,1805.9,1.10761]
[1746477899605,1.10766,1806.0,1805.9,1.10761]
[1746477899810,4.31546,1806.0,1805.9,1.10761]
[1746477900009,5.88136,1806.0,1805.9,1.10761]
[1746477903915,1.10764,1805.9,1805.8,2.81948]
[1746477904208,3.63504,1805.9,1805.7,41.6296]
[1746477904516,4.49134,1805.9,1805.8,1.1077]
[1746477904812,1.1077,1805.8,1805.7,44.34921]
[1746477907309,1.1077,1805.8,1805.7,43.51961]
[1746477908212,1.718,1805.9,1805.7,42.4119]
[1746477908510,2.82567,1805.9,1805.8,2.726]
[1746477909802,2.82567,1805.9,1805.8,1.6183]
[1746477910008,2.82567,1805.9,1805.8,2.726]
[1746477910207,1.10783,1805.7,1805.6,1.10778]
[1746477910412,1.10783,1805.6,1805.5,1.10789]
[1746477910601,1.91103,1805.6,1805.5,1.10789]
[1746477910811,3.2078,1805.7,1805.6,1.10783]
[1746477911112,4.31553,1805.8,1805.7,1.10776]
[1746477911311,5.11873,1805.8,1805.7,1.10776]
[1746477915413,1.10776,1805.7,1805.6,2.83971]
[1746477915608,1.10793,1805.5,1805.4,1.10789]
[1746477915813,1.10793,1805.5,1805.4,2.72619]
[1746477916009,2.84213,1805.5,1805.4,2.72619]
[1746477916221,1.7342,1805.5,1805.4,2.72619]
[1746477917226,4.31568,1805.6,1805.5,1.10789]
[1746477917417,4.31568,1805.6,1805.5,2.74869]
[1746477917615,1.10788,1805.6,1805.5,2.74869]
[1746477920624,4.31568,1805.6,1805.5,2.74869]
[1746477920816,1.10789,1805.5,1805.4,1.1079]
[1746477921017,1.10795,1805.4,1805.3,45.62897]
[1746477921425,2.67205,1805.4,1805.3,47.30737]
[1746477923119,5.87985,1805.4,1805.3,40.8]
[1746477924118,1.10807,1805.2,1805.1,1.10808]
[1746477924418,4.31587,1805.2,1805.1,1.10808]
[1746477924627,4.31587,1805.2,1805.1,41.90808]
[1746477924830,5.16087,1805.2,1805.1,41.90808]
[1746477925128,4.0528,1805.2,1805.1,41.90808]
[1746477925518,5.6627,1805.2,1805.1,41.90808]
[1746477926027,5.6627,1805.2,1805.1,43.54898]
[1746477926226,6.77077,1805.2,1805.1,43.54898]
[1746477926428,5.6627,1805.2,1805.1,43.54898]
[1746477926723,6.16518582,1805.4,1805.3,1.10801]
[1746477927429,6.16518582,1805.4,1805.3,15.47371]
[1746477927915,6.16518582,1805.4,1805.3,56.27371]
[1746477928315,5.45859061,1805.6,1805.5,1.10789]
[1746477928925,6.56642061,1805.6,1805.5,1.10789]
[1746477929127,1.10789,1805.5,1805.4,1.623]
[1746477929326,3.60629,1805.5,1805.4,2.7309]
[1746477929631,3.60629,1805.5,1805.4,43.5309]
[1746477932434,6.81409,1805.5,1805.4,43.5309]
[1746477933335,6.81409,1805.5,1805.4,41.90795]
[1746477933537,6.81409,1805.5,1805.4,40.8]
[1746477934229,6.81409,1805.5,1805.4,41.90795]
[1746477938340,5.7062,1805.5,1805.4,41.90795]
[1746477938530,6.81409,1805.5,1805.4,41.90795]
[1746477940233,6.81409,1805.5,1805.4,40.8]
[1746477940434,10.7062,1805.5,1805.1,1.5975]
[1746477940640,3.2078,1805.2,1804.5,18.42113584]
[1746477940837,4.31624,1804.6,1804.5,18.42113584]
[1746477941027,4.31624,1804.6,1804.5,20.01863584]
[1746477941533,4.31624,1804.6,1804.5,18.42113584]
[1746477941729,5.96794,1804.6,1804.5,18.42113584]
[1746477942343,4.8595,1804.6,1804.5,19.52963584]
[1746477942637,5.96794,1804.6,1804.5,21.14553584]
[1746477942840,4.8595,1804.6,1804.5,21.14553584]
[1746477943831,5.96794,1804.6,1804.5,21.14553584]
[1746477944031,5.96794,1804.6,1804.5,18.42113584]
[1746477944231,1.1085,1804.5,1804.4,41.90855]
[1746477944441,2.7173,1804.5,1804.4,41.90855]
[1746477944741,2.7173,1804.5,1804.4,43.55865]
[1746477945034,1.6088,1804.5,1804.4,43.55865]
[1746477946439,3.2078,1804.6,1804.5,1.1085]
[1746477946636,3.64932869,1804.9,1804.8,1.10832]
[1746477947239,3.64932869,1804.9,1804.8,6.10832]
[1746477947443,3.64932869,1804.9,1804.8,11.83642]
[1746477948136,3.64932869,1804.9,1804.8,6.83642]
[1746477949646,3.64932869,1804.9,1804.8,3.62862]
[1746477952149,5.89366,1804.9,1804.8,2.83182]
[1746477952449,5.89366,1804.9,1804.8,1.10832]
[1746477953643,4.7854,1804.9,1804.6,1.6762]
[1746477953941,4.37039,1805.0,1804.5,4.82845]
[1746477953942,1.10844,1804.6,1804.5,4.82845]
[1746477954248,1.10844,1804.6,1804.5,1.1085]
[1746477954439,4.35214,1804.6,1804.5,1.1085]
[1746477954641,3.2437,1804.6,1804.5,1.1085]
[1746477955041,4.35214,1804.6,1804.5,1.1085]
[1746477956549,3.2437,1804.6,1804.5,1.1085]
[1746477956746,4.35214,1804.6,1804.5,1.1085]
[1746477959451,3.2437,1804.6,1804.5,1.1085]
[1746477959649,4.35214,1804.6,1804.5,1.1085]
[1746477960643,3.2437,1804.6,1804.5,1.1085]
[1746477961049,4.35214,1804.6,1804.5,1.1085]
[1746477963046,1.1085,1804.5,1804.4,40.8]
[1746477963349,2.77141,1804.4,1803.9,3.72]
[1746477963554,1.10875,1804.2,1804.1,1.10872]
[1746477963948,4.40285,1804.2,1804.1,41.90872]
[1746477964847,3.2941,1804.2,1804.1,41.90872]
[1746477965553,3.2078,1804.3,1804.2,1.10869]
[1746477965740,3.2078,1804.3,1804.2,2.68829]
[1746477966352,4.31642,1804.3,1804.2,2.68829]
[1746477966555,5.93882,1804.3,1804.2,1.10869]
[1746477967342,5.93882,1804.3,1804.2,2.68829]
[1746477968456,5.93882,1804.3,1804.2,1.10869]
[1746477969049,1.10869,1804.2,1804.1,41.90869]
[1746477969356,2.75429,1804.2,1804.1,41.90869]
[1746477970250,2.75429,1804.2,1804.1,40.8]
[1746477972350,3.60869,1804.2,1804.1,40.8]
[1746477972551,3.60869,1804.2,1804.1,41.90875]
[1746477973257,3.60869,1804.2,1804.1,40.8]
[1746477974358,3.60869,1804.2,1804.1,41.90875]
[1746477974856,3.60869,1804.2,1804.1,40.8]
[1746477975261,1.10891,1803.9,1803.7,6.49348]
[1746477975556,1.10891,1803.9,1803.8,1.10887]
[1746477975759,1.10891,1803.9,1803.8,41.90887]
[1746477975951,2.82061,1803.9,1803.8,41.90887]
[1746477976146,2.82061,1803.9,1803.8,43.60447]
[1746477977357,1.7117,1803.9,1803.8,43.60447]
[1746477977558,3.2078,1804.0,1803.9,1.10887]
[1746477977859,3.2078,1804.0,1803.9,2.80447]
[1746477978256,4.31661,1804.0,1803.9,2.80447]
[1746477978453,4.31661,1804.0,1803.9,43.60447]
[1746477978652,5.90521,1804.0,1803.9,43.60447]
[1746477978854,2.69741,1804.0,1803.9,43.60447]
[1746477980653,5.90521,1804.0,1803.9,43.60447]
[1746477981152,1.10899,1803.7,1803.6,0.8502]
[1746477981360,1.10905,1803.6,1803.5,1.1091]
[1746477981558,2.83205,1803.6,1803.5,1.7251]
[1746477981751,2.83205,1803.6,1803.5,43.63422]
[1746477982151,1.723,1803.6,1803.5,43.63422]
[1746477982358,2.83205,1803.6,1803.5,43.63422]
[1746477982862,1.96304,1803.7,1803.6,1.10905]
[1746477983061,1.96304,1803.7,1803.6,2.83415]
[1746477983465,1.96299,1803.7,1803.6,2.83415]
[1746477983856,0.854,1803.7,1803.6,2.83415]
[1746477984062,1.96299,1803.7,1803.6,2.83415]
[1746477984761,0.854,1803.7,1803.6,2.83415]
[1746477985263,4.0689,1803.9,1803.6,2.83415]
[1746477985264,3.2078,1803.9,1803.8,1.10893]
[1746477985864,3.2078,1803.9,1803.8,2.79163]
[1746477986659,2.78599,1804.2,1804.1,1.10875]
[1746477987153,4.45509,1804.2,1804.1,1.10875]
[1746477987753,1.10875,1804.1,1804.0,2.75026]
[1746477987952,1.10875,1804.1,1803.9,1.10883]
[1746477988163,2.77791,1804.0,1803.9,1.10883]
[1746477988362,1.10881,1804.0,1803.9,2.75033]
[1746477990062,5.98569,1804.1,1804.0,1.10881]
[1746477990369,5.98569,1804.1,1804.0,2.82851]
[1746477993468,1.10875,1804.2,1804.1,1.10871]
[1746477993670,1.10875,1804.2,1804.0,2.82846]
[1746477993671,1.10875,1804.1,1804.0,2.82846]
[1746477994167,2.79975,1804.1,1804.0,2.82846]
[1746477997067,1.691,1804.1,1804.0,2.82846]
[1746477997566,5.93282,1804.2,1804.1,1.10875]
[1746477997567,4.8241,1804.2,1804.1,1.10875]
[1746477997757,4.8241,1804.2,1804.1,2.69065]
[1746477997961,9.1079193,1804.5,1804.4,1.10856]
[1746477999872,5.45859061,1804.5,1804.4,1.10856]
[1746478000072,5.45859061,1804.5,1804.3,2.69047]
[1746478000073,1.10856,1804.4,1804.3,2.69047]
[1746478000271,8.21034061,1804.5,1804.4,1.10856]
[1746478000871,1.10856,1804.4,1804.3,2.69049]
[1746478001079,5.6631,1804.4,1804.3,2.69049]
[1746478001277,3.2078,1804.4,1804.3,2.69049]
[1746478001573,5.45859061,1804.5,1804.4,1.10856]
[1746478001774,5.45859061,1804.5,1804.4,2.70146]
[1746478003875,5.45859061,1804.5,1804.4,43.50146]
[1746478004572,1.6343,1804.6,1804.5,1.1085]
[1746478004769,1.6343,1804.6,1804.5,2.7481]
[1746478005971,3.64870394,1804.7,1804.6,1.10844]
[1746478006274,3.64870394,1804.7,1804.6,4.34764]
[1746478006869,2.08693394,1804.7,1804.6,9.34764]
[1746478007068,3.56470455,1804.8,1804.7,1.10838]
[1746478007269,4.55e-06,1804.8,1804.7,7.69178]
[1746478007871,4.55e-06,1804.9,1804.8,1.10832]
[1746478008171,4.55e-06,1804.9,1804.8,14.61752]
[1746478010578,4.55e-06,1804.9,1804.8,9.61752]
[1746478011381,0.1,1805.1,1805.0,1.10819]
[1746478011581,0.1,1805.1,1805.0,4.31599]
[1746478011981,0.1,1805.1,1805.0,6.81439]
[1746478015184,4.41593,1805.1,1805.0,1.10819]
[1746478015476,0.1,1805.1,1805.0,1.10819]
[1746478015681,0.931,1805.1,1805.0,1.10819]
[1746478016186,5.24693,1805.1,1805.0,1.10819]
[1746478016380,1.10821,1805.0,1804.9,1.10819]
[1746478016580,1.10826,1804.9,1804.8,1.10829]
[1746478016880,0.8414,1804.9,1804.8,1.10829]
[1746478017380,2.5053,1804.9,1804.8,1.10829]
[1746478019379,5.7131,1804.9,1804.6,3.713]
[1746478019587,1.7108,1804.8,1804.7,1.10838]
[1746478020483,2.81912,1804.8,1804.7,1.10838]
[1746478021487,1.7108,1804.8,1804.7,1.10838]
[1746478021693,1.7108,1804.8,1804.7,2.74588]
[1746478024690,1.7108,1804.8,1804.7,1.10838]
[1746478024881,2.81912,1804.8,1804.7,1.10838]
[1746478025385,1.10838,1804.7,1804.6,4.82144]
[1746478025582,3.56228,1804.7,1804.6,4.82144]
[1746478026290,2.4539,1804.7,1804.6,4.82144]
[1746478029092,3.56228,1804.7,1804.6,4.82144]
[1746478029587,2.4539,1804.7,1804.6,4.82144]
[1746478030190,2.4539,1804.7,1804.6,6.39444]
[1746478030391,2.4539,1804.7,1804.6,7.18014]
[1746478031289,0.8414,1804.9,1804.8,1.10832]
[1746478031990,2.3512,1805.0,1804.9,1.10826]
[1746478032594,2.3512,1805.0,1804.9,2.68126]
[1746478032794,3.3078,1805.1,1805.0,1.10819]
[1746478033091,3.3078,1805.1,1805.0,2.74649]
[1746478033493,3.3078,1805.1,1805.0,3.59549]
[1746478035695,0.1,1805.1,1805.0,3.59549]
[1746478036292,1.7979,1805.1,1805.0,1.10819]
[1746478038298,2.90603,1805.1,1805.0,1.10819]
[1746478038499,1.7979,1805.1,1805.0,1.10819]
[1746478038994,6.7979,1805.1,1804.7,1.10835]
[1746478039219,6.83651,1805.0,1804.5,6.48014]
[1746478039499,5.7997,1805.0,1804.5,3.709]
[1746478039702,3.2078,1804.8,1804.5,3.709]
[1746478039997,1.7337,1804.7,1804.6,1.10841]
[1746478040600,2.84208,1804.7,1804.6,1.10841]
[1746478041301,1.10844,1804.6,1804.5,4.81746]
[1746478041601,1.10844,1804.6,1804.4,40.8]
[1746478041602,1.1085,1804.5,1804.4,40.8]
[1746478041903,1.1085,1804.5,1804.4,41.90856]
[1746478042097,2.7004,1804.5,1804.4,40.8]
[1746478042298,2.7004,1804.5,1804.4,41.90856]
[1746478043193,2.7004,1804.5,1804.4,40.8]
[1746478044101,2.7004,1804.5,1804.4,41.90856]
[1746478045404,2.7004,1804.5,1804.4,40.8]
[1746478045998,1.5919,1804.5,1804.4,41.90856]
[1746478046804,7.31319289,1804.9,1804.8,1.10832]
[1746478047704,7.31319289,1804.9,1804.8,2.79402]
[1746478048800,0.1,1805.1,1805.0,1.10819]
[1746478049908,0.1,1805.1,1804.9,1.6697]
[1746478050200,1.7219,1805.1,1805.0,1.10819]
[1746478052012,2.83003,1805.1,1805.0,1.10819]
[1746478052304,1.7219,1805.1,1805.0,1.10819]
[1746478052700,0.1,1805.1,1805.0,1.10819]
[1746478053005,1.20813,1805.1,1805.0,1.10819]
[1746478054204,0.1,1805.1,1805.0,1.10819]
[1746478056912,1.20813,1805.1,1805.0,1.10819]
[1746478057110,0.1,1805.1,1805.0,1.10819]
[1746478057909,2.85403,1805.1,1805.0,1.10819]
[1746478058110,1.7459,1805.1,1805.0,2.75689]
[1746478059116,2.85403,1805.1,1805.0,2.75689]
[1746478059312,1.10819,1805.0,1804.9,3.709]
[1746478059623,1.10832,1804.8,1804.7,1.10837]
[1746478059919,1.10844,1804.6,1804.5,4.8175]
[1746478060111,7.59702,1804.7,1804.5,3.709]
[1746478060310,2.74332,1804.7,1804.6,1.10844]
[1746478063816,5.95112,1804.7,1804.6,1.10844]
[1746478064521,1.6349,1804.7,1804.6,1.10844]
[1746478064720,1.6349,1804.7,1804.6,2.69174]
[1746478066619,10.62099289,1805.1,1805.0,1.10819]
[1746478068019,11.72912289,1805.1,1805.0,1.10819]
[1746478068632,10.62099289,1805.1,1805.0,1.10819]
[1746478070028,3.3078,1805.1,1805.0,1.10819]
[1746478071730,4.41593,1805.1,1804.9,1.6995]
[1746478072225,4.41593,1805.1,1805.0,1.10819]
[1746478072422,3.3078,1805.1,1805.0,1.10819]
[1746478072923,4.41593,1805.1,1805.0,1.10819]
[1746478073230,3.3078,1805.1,1804.9,1.6995]
[1746478073529,4.41599,1805.1,1805.0,1.10819]
[1746478073739,0.1,1805.1,1805.0,1.10819]
[1746478074634,1.20813,1805.1,1805.0,1.10819]
[1746478075034,0.1,1805.1,1805.0,1.10819]
[1746478075833,1.20813,1805.1,1805.0,1.10819]
[1746478076026,2.89053,1805.1,1805.0,1.10819]
[1746478077333,1.7824,1805.1,1805.0,1.10819]
[1746478077535,1.7824,1805.1,1805.0,2.82009]
[1746478079135,2.89053,1805.1,1805.0,2.82009]
[1746478079335,1.7824,1805.1,1805.0,2.82009]
[1746478079838,0.1,1805.1,1805.0,2.82009]
[1746478080035,0.1,1805.1,1805.0,4.38579]
[1746478081237,1.20813,1805.1,1805.0,2.82009]
[1746478081431,2.82223,1805.1,1805.0,2.82009]
[1746478081630,1.7141,1805.1,1805.0,2.82009]
[1746478082034,2.82223,1805.1,1805.0,2.82009]
[1746478082230,2.82223,1805.1,1805.0,1.10819]
[1746478084238,1.7141,1805.1,1805.0,1.10819]
[1746478084633,1.7141,1805.1,1805.0,2.75219]
[1746478085641,0.1,1805.1,1805.0,2.75219]
[1746478087241,0.1,1805.1,1805.0,5.95999]
[1746478088641,0.1,1805.1,1805.0,46.75999]
[1746478088837,0.1,1805.1,1805.0,50.46499]
[1746478089336,1.6707,1805.1,1805.0,50.46499]
[1746478090742,1.6707,1805.1,1805.0,47.25719]
[1746478092440,5.98663,1805.1,1805.0,45.61319]
[1746478092747,5.98663,1805.1,1805.0,40.8]
[1746478092939,5.98663,1805.1,1805.0,41.90819]
[1746478093148,4.8785,1805.1,1805.0,41.90819]
[1746478093349,5.98663,1805.1,1805.0,40.8]
[1746478094242,5.98663,1805.1,1805.0,41.90819]
[1746478094434,4.8785,1805.1,1805.0,41.90819]
[1746478094950,5.98663,1805.1,1805.0,41.90819]
[1746478095339,5.98663,1805.1,1805.0,40.8]
[1746478095538,6.81773,1805.1,1805.0,41.90819]
[1746478101751,0.1,1805.1,1805.0,41.90819]
[1746478101955,0.1,1805.1,1805.0,48.51489]
[1746478102152,0.1,1805.1,1805.0,43.51489]
[1746478115256,1e-05,1805.1,1805.0,48.51489]
[1746478115555,5.48130237,1805.6,1805.5,1.10789]
[1746478115744,5.48130237,1805.6,1805.5,8.01669]
[1746478116250,5.48130237,1805.6,1805.5,9.72529]
[1746478117654,5.48130237,1805.6,1805.5,6.51749]
[1746478118558,2.4556,1805.7,1805.6,1.10783]
[1746478118758,2.4556,1805.7,1805.6,2.69283]
[1746478120453,3.2078,1805.9,1805.8,1.1077]
[1746478120658,5.6468,1805.9,1805.8,1.1077]
[1746478120849,6.75444,1805.9,1805.8,1.1077]
[1746478121053,5.6468,1805.9,1805.8,1.1077]
[1746478121354,5.48130237,1806.1,1806.0,1.10758]
[1746478121657,5.48130237,1806.1,1806.0,4.31538]
[1746478121958,5.48130237,1806.1,1806.0,45.11538]
[1746478122159,5.48130237,1806.1,1806.0,46.82288]
[1746478122562,5.48130237,1806.1,1806.0,43.61508]
[1746478130260,4.14766237,1806.1,1806.0,48.61508]
[1746478130456,3.02685237,1806.1,1806.0,48.61508]
[1746478131064,2.5218,1806.5,1806.2,1.10746]
[1746478131259,2.5218,1806.5,1806.4,1.10734]
[1746478131651,2.5218,1806.5,1806.4,2.79664]
[1746478131855,2.5218,1806.5,1806.4,43.59664]
[1746478134963,3.2078,1807.1,1806.5,2.76819]
[1746478135164,3.2078,1807.1,1807.0,1.10697]
[1746478135563,8.2078,1807.1,1807.0,1.10697]
[1746478135763,9.31471,1807.1,1807.0,1.10697]
[1746478135960,8.2078,1807.1,1807.0,1.10697]
[1746478136162,3.2078,1807.1,1807.0,1.10697]
[1746478136360,8.2078,1807.1,1806.9,3.694]
[1746478136663,2.81137,1807.0,1806.8,1.10704]
[1746478136865,1.7044,1806.9,1806.8,1.10704]
[1746478137658,4.9122,1806.9,1806.8,1.10704]
[1746478137868,5.7479,1806.9,1806.8,1.10704]
[1746478140670,6.85493,1806.9,1806.8,1.10704]
[1746478140871,5.7479,1806.9,1806.8,1.10704]
[1746478142173,2.5401,1806.9,1806.8,1.10704]
[1746478143870,3.64713,1806.9,1806.8,1.10704]
[1746478144069,6.85493,1806.9,1806.8,1.10704]
[1746478144669,1.10721,1806.6,1806.5,4.80026]
[1746478144866,1.10721,1806.6,1806.5,3.693]
[1746478144867,3.2078,1806.6,1806.5,3.693]
[1746478145170,3.2078,1806.6,1806.5,4.80027]
[1746478145368,4.0413,1806.6,1806.5,4.80027]
[1746478145576,5.6269,1806.6,1806.5,4.80027]
[1746478145773,2.4191,1806.6,1806.5,4.80027]
[1746478145974,2.4191,1806.6,1806.5,6.43487]
[1746478146576,0.7884,1806.8,1806.7,1.10715]
[1746478146773,1.6219,1806.8,1806.7,1.10715]
[1746478147878,4.31466,1807.2,1807.0,1.10693]
[1746478148066,0.8189,1807.1,1807.0,1.10693]
[1746478148270,2.4045,1807.1,1807.0,1.10693]
[1746478148572,2.4045,1807.1,1807.0,2.74153]
[1746478150877,2.4045,1807.1,1807.0,1.10693]
[1746478151973,2.4045,1807.1,1807.0,2.70943]
[1746478152180,2.4045,1807.1,1807.0,1.10693]
[1746478152578,3.51145,1807.1,1806.9,4.8]
[1746478152878,5.7012,1807.0,1806.9,4.80003]
[1746478155181,2.4934,1807.0,1806.9,4.80003]
[1746478156880,0.8189,1807.1,1807.0,1.10697]
[1746478157082,0.8189,1807.1,1807.0,2.78137]
[1746478157380,2.4074,1807.1,1807.0,2.78137]
[1746478159285,0.8341,1807.2,1807.1,1.10691]
[1746478159875,2.4477,1807.2,1807.1,1.10691]
[1746478161777,3.2078,1807.4,1807.0,1.6283]
[1746478162081,3.2078,1807.6,1807.4,1.10672]
[1746478162283,3.2078,1807.6,1807.5,40.8]
[1746478162578,4.9383,1807.6,1807.5,41.90666]
[1746478162887,4.9383,1807.6,1807.5,43.49316]
[1746478163981,4.9383,1807.6,1807.5,41.90666]
[1746478165881,6.0449,1807.6,1807.5,41.90666]
[1746478166278,4.9383,1807.6,1807.5,41.90666]
[1746478167884,6.0449,1807.6,1807.5,41.90666]
[1746478168880,4.9383,1807.6,1807.5,41.90666]
[1746478169073,6.0449,1807.6,1807.5,41.90666]
[1746478169278,6.0449,1807.6,1807.5,40.8]
[1746478170783,4.9383,1807.6,1807.3,1.10674]
[1746478171085,4.31452,1807.4,1807.3,1.10674]
[1746478171281,4.31452,1807.4,1807.3,41.90674]
[1746478171487,5.09702,1807.4,1807.3,41.90674]
[1746478173582,5.09702,1807.4,1807.3,40.8]
[1746478173988,5.09702,1807.4,1807.3,1.10678]
[1746478174679,1.10678,1807.3,1807.2,45.59379]
[1746478174890,1.10685,1807.2,1807.1,1.10686]
[1746478175083,5.97494,1807.2,1806.8,1.10703]
[1746478175285,1.10703,1806.9,1806.8,1.10703]
[1746478175582,1.10703,1806.9,1806.8,41.90703]
[1746478175786,3.56703,1806.9,1806.8,41.90703]
[1746478176080,2.46,1806.9,1806.8,41.90703]
[1746478176286,3.56703,1806.9,1806.8,41.90703]
[1746478176484,2.46,1806.9,1806.8,41.90703]
[1746478176880,3.56703,1806.9,1806.8,41.90703]
[1746478177393,3.56703,1806.9,1806.8,40.8]
[1746478178287,0.8134,1806.9,1806.8,41.90709]
[1746478178691,2.4925,1806.9,1806.8,41.90709]
[1746478178891,3.59953,1806.9,1806.8,41.90709]
[1746478179189,2.4925,1806.9,1806.8,41.90709]
[1746478179490,3.59953,1806.9,1806.8,41.90709]
[1746478180190,3.59953,1806.9,1806.8,40.8]
[1746478183891,3.59953,1806.9,1806.8,41.90709]
[1746478184085,3.59953,1806.9,1806.8,43.56499]
[1746478184986,3.59953,1806.9,1806.8,42.4579]
[1746478185186,3.59953,1806.9,1806.8,40.8]
[1746478192898,1.10709,1806.8,1806.7,1.10714]
[1746478193199,1.10715,1806.7,1806.6,1.6723]
[1746478193393,3.64345,1806.7,1806.6,42.4723]
[1746478194100,3.64345,1806.7,1806.6,43.57951]
[1746478195801,1.10715,1806.7,1806.6,43.57951]
[1746478197194,2.74785,1806.7,1806.6,43.57951]
[1746478198810,1.10715,1806.7,1806.6,43.57951]
[1746478200013,4.31494,1806.8,1806.7,1.10715]
[1746478200213,3.2078,1806.8,1806.7,2.75025]
[1746478200809,4.31489,1806.8,1806.7,42.4431]
[1746478201111,4.31489,1806.8,1806.7,43.55025]
[1746478203716,4.31489,1806.8,1806.7,42.4431]
[1746478204115,4.31489,1806.8,1806.7,43.55025]
[1746478206619,4.31489,1806.8,1806.7,42.4431]
[1746478206817,5.98839,1806.8,1806.7,43.55025]
[1746478207116,4.31489,1806.8,1806.7,43.55025]
[1746478207716,3.2078,1806.8,1806.7,43.55025]
[1746478209619,4.31489,1806.9,1806.8,1.10709]
[1746478209819,4.31489,1806.9,1806.8,4.36689]
[1746478210117,3.2078,1806.9,1806.8,4.36689]
[1746478211219,3.65154048,1807.1,1807.0,1.10697]
[1746478211418,4.75845048,1807.1,1807.0,1.10697]
[1746478211716,3.65154048,1807.1,1807.0,1.10697]
[1746478212113,4.75845048,1807.1,1807.0,1.10697]
[1746478212514,1.10691,1807.1,1807.0,1.10697]
[1746478213220,6.85934048,1807.2,1807.1,1.10691]
[1746478213519,7.96619048,1807.2,1807.1,1.10691]
[1746478213919,7.96619048,1807.2,1807.1,2.74211]
[1746478214218,6.85934048,1807.2,1807.1,2.74211]
[1746478214818,3.2078,1807.2,1807.1,2.74211]
[1746478219720,8.48334048,1807.5,1807.4,1.10672]
[1746478220116,9.59000048,1807.5,1807.4,1.10672]
[1746478220821,8.48334048,1807.5,1807.4,1.10672]
[1746478221022,6.85934048,1807.5,1807.4,2.76882]
[1746478222118,3.65154048,1807.5,1807.4,2.76882]
[1746478222523,4.5538,1807.6,1807.5,1.10666]
[1746478222821,7.96592048,1807.7,1807.6,1.1066]
[1746478223023,10.17274048,1807.7,1807.6,1.1066]
[1746478223722,11.27928048,1807.7,1807.6,1.1066]
[1746478224726,1.1066,1807.6,1807.5,2.77932]
[1746478224924,10.17274048,1807.7,1807.6,1.1066]
[1746478225227,10.17274048,1807.7,1807.6,2.6926]
[1746478225423,6.85934048,1807.7,1807.6,2.6926]
[1746478225728,3.2078,1807.7,1807.6,2.6926]
[1746478226727,5.27974048,1807.9,1807.8,1.10648]
[1746478226728,8.48754048,1807.9,1807.8,1.10648]
[1746478227229,8.48754048,1807.9,1807.8,2.69248]
[1746478227726,5.27974048,1807.9,1807.8,2.69248]
[1746478227927,1.6282,1807.9,1807.8,43.49248]
[1746478228223,2.73462,1807.9,1807.8,43.49248]
[1746478228423,4.39412,1807.9,1807.8,43.49248]
[1746478228620,3.2877,1807.9,1807.8,43.49248]
[1746478229325,4.39412,1807.9,1807.8,43.49248]
[1746478229518,3.2877,1807.9,1807.8,43.49248]
[1746478230920,0.8329,1807.9,1807.8,43.49248]
[1746478231526,2.4411,1808.0,1807.9,1.10642]
[1746478231727,2.4411,1808.0,1807.9,2.67362]